bitfinex/quotes_SOLUSD_20240906
["timestamp","ask_amount","ask_price","bid_price","bid_amount"]
[1725627302022,1.29675534,134.1,134.09,26.1017]
[1725627302222,7.4536,134.17,134.09,18.6441]
[1725627302522,1.29687769,134.1,134.09,26.1017]
[1725627302826,7.4536,134.17,134.1,7.4571]
[1725627303123,7.4527,134.18,134.11,7.4564]
[1725627303298,1.29685043,134.16,134.11,7.4564]
[1725627303495,1.29685043,134.16,134.13,7.4553]
[1725627303701,1.29685043,134.16,134.14,7.4547]
[1725627304007,1.29685043,134.16,134.13,26.093]
[1725627305111,1.29685043,134.16,134.13,18.6376]
[1725627305312,1.29685043,134.16,134.14,7.4547]
[1725627305520,1.29685043,134.16,134.13,18.6376]
[1725627306200,1.29685043,134.16,134.11,7.4565]
[1725627306403,1.29685043,134.16,134.1,18.642]
[1725627306404,7.4545,134.15,134.1,18.642]
[1725627306645,1.29685043,134.16,134.1,26.0991]
[1725627306646,8.75075043,134.16,134.1,26.0991]
[1725627307113,1.29685043,134.16,134.1,18.642]
[1725627307317,1.29685043,134.16,134.12,7.4555]
[1725627307527,1.29685043,134.16,134.07,53.5856]
[1725627307749,1.29685043,134.16,134.15,7.4543]
[1725627308237,1.29685043,134.16,134.1,18.6421]
[1725627308449,1.29685043,134.16,134.07,53.5856]
[1725627308450,1.29685043,134.16,134.07,34.9386]
[1725627308607,8.75065043,134.16,134.1,7.457]
[1725627308930,8.75065043,134.16,134.07,16.2923]
[1725627308931,7.4543,134.15,134.09,26.1009]
[1725627309506,1.29685043,134.16,134.15,7.4543]
[1725627309820,1.29685043,134.16,134.13,18.6381]
[1725627309821,1.29685043,134.16,134.14,7.4547]
[1725627310629,1.29685043,134.16,134.15,7.4543]
[1725627310930,1.29685043,134.16,134.13,18.6381]
[1725627311128,1.29685043,134.16,134.14,7.4545]
[1725627311323,1.29685043,134.16,134.13,18.6381]
[1725627311805,1.29685043,134.16,134.15,23.5377]
[1725627313826,1.29685043,134.16,134.15,60.8094]
[1725627314136,19.1959,134.32,134.17,7.4532]
[1725627314318,19.1959,134.32,134.16,22.5577]
[1725627314319,7.4498,134.29,134.16,41.1915]
[1725627314629,7.4498,134.29,134.18,26.0833]
[1725627314831,7.4498,134.29,134.17,7.453]
[1725627314832,7.4499,134.23,134.17,7.453]
[1725627315009,7.4499,134.23,134.18,7.4525]
[1725627315941,3.89634678,134.31,134.19,26.0809]
[1725627317028,7.4499,134.23,134.17,7.4526]
[1725627317405,7.4499,134.23,134.16,41.1913]
[1725627317406,18.6225,134.25,134.16,41.1913]
[1725627317609,18.6225,134.25,134.16,34.5999]
[1725627317610,7.4515,134.2,134.16,34.5999]
[1725627318140,6.5074,134.24,134.16,34.5999]
[1725627318141,7.4526,134.19,134.16,15.9663]
[1725627318338,1.86320629,134.22,134.13,18.6383]
[1725627318548,18.6256,134.23,134.13,18.6383]
[1725627318549,7.4523,134.19,134.13,26.0933]
[1725627318928,7.4523,134.19,134.14,7.4548]
[1725627319127,1.29617001,134.18,134.14,7.4548]
[1725627319656,7.4511,134.21,134.16,7.4537]
[1725627319822,7.4506,134.22,134.17,7.4532]
[1725627320223,1.29586869,134.21,134.18,18.631]
[1725627320447,1.29586869,134.21,134.2,7.4515]
[1725627321248,1.29586869,134.21,134.2,23.8771]
[1725627322250,1.29586869,134.21,134.2,16.4256]
[1725627323457,1.29586869,134.21,134.2,25.36710584]
[1725627323622,1.29586869,134.21,134.2,23.8771]
[1725627323824,1.29586869,134.21,134.2,16.4256]
[1725627324348,1.29586869,134.21,134.2,23.8771]
[1725627324550,1.29586869,134.21,134.2,16.4256]
[1725627325126,1.29586869,134.21,134.2,23.8771]
[1725627327931,1.29586869,134.21,134.2,30.2105]
[1725627328533,6.5482,134.36,134.21,60.0]
[1725627328743,13.9914,134.36,134.31,7.4454]
[1725627328950,6.5482,134.36,134.31,7.4454]
[1725627329183,7.4432,134.35,134.3,26.0602]
[1725627329349,13.9909,134.36,134.31,7.4452]
[1725627329727,7.4437,134.35,134.31,7.4454]
[1725627330453,13.9908,134.36,134.31,7.4454]
[1725627330824,7.4451,134.32,134.27,26.0652]
[1725627331027,6.5482,134.36,134.28,7.4471]
[1725627331240,7.4439,134.34,134.29,7.4465]
[1725627331427,6.5482,134.36,134.3,7.4459]
[1725627331428,7.4433,134.35,134.3,7.4459]
[1725627331629,1.29622524,134.33,134.27,18.6181]
[1725627332140,1.29622524,134.33,134.29,18.6154]
[1725627333035,1.29622524,134.33,134.29,26.0619]
[1725627333342,1.29622524,134.33,134.3,7.4459]
[1725627336453,1.29622524,134.33,134.31,7.4453]
[1725627336643,1.29622524,134.33,134.31,18.6133]
[1725627336851,1.29622524,134.33,134.31,26.0586]
[1725627337153,1.29622524,134.33,134.29,15.7274]
[1725627337355,8.74062524,134.33,134.29,23.1739]
[1725627337667,8.74062524,134.33,134.29,15.7274]
[1725627337668,1.29622524,134.33,134.29,15.7274]
[1725627337960,0.8,134.28,134.27,26.0661]
[1725627338252,1.2,134.28,134.27,26.0661]
[1725627338845,1.2,134.28,134.27,27.55532606]
[1725627339242,1.2,134.28,134.27,26.0662]
[1725627343756,7.445,134.32,134.27,26.0662]
[1725627344259,7.4442,134.34,134.29,26.0623]
[1725627344666,7.4442,134.34,134.3,7.446]
[1725627345941,7.4443,134.33,134.29,26.0624]
[1725627346252,7.4438,134.34,134.3,7.4459]
[1725627347761,7.4445,134.33,134.29,26.0624]
[1725627348944,7.4439,134.34,134.29,26.0624]
[1725627350444,7.4439,134.34,134.3,7.4459]
[1725627351171,8.78388351,134.39,134.29,18.616]
[1725627351471,45.0,134.38,134.29,18.616]
[1725627352263,7.4438,134.34,134.3,7.4458]
[1725627353663,63.604,134.38,134.29,18.616]
[1725627353976,7.444,134.34,134.3,7.446]
[1725627354770,7.444,134.34,134.31,7.4453]
[1725627356169,7.444,134.34,134.3,7.4459]
[1725627358382,7.444,134.34,134.29,18.616]
[1725627358588,7.444,134.34,134.31,7.4454]
[1725627359087,7.444,134.34,134.3,7.4458]
[1725627359258,63.604,134.38,134.29,26.0625]
[1725627359259,7.4444,134.33,134.29,26.0625]
[1725627359586,1.86114226,134.32,134.25,21.4964]
[1725627359787,7.4462,134.3,134.26,26.0684]
[1725627359974,7.4466,134.29,134.26,18.6203]
[1725627360158,7.4466,134.29,134.26,26.0684]
[1725627360359,18.6124,134.32,134.25,15.4484]
[1725627360563,7.4488,134.25,134.21,22.5108]
[1725627360792,7.4478,134.27,134.22,7.4503]
[1725627360997,7.4472,134.28,134.24,7.4489]
[1725627361287,7.4463,134.3,134.24,18.6232]
[1725627361490,6.1626,134.35,134.27,42.68540837]
[1725627361792,6.1626,134.35,134.3,26.0603]
[1725627361793,7.444,134.34,134.3,26.0603]
[1725627362463,7.444,134.34,134.3,26.0606]
[1725627362859,7.4443,134.33,134.3,26.0606]
[1725627363081,7.4443,134.33,134.3,18.6146]
[1725627363899,7.4452,134.32,134.28,22.8664]
[1725627364269,1.2,134.3,134.28,22.8664]
[1725627364596,1.2,134.3,134.25,79.92730837]
[1725627364597,7.4469,134.29,134.25,16.1369]
[1725627364799,7.4469,134.29,134.25,23.5852]
[1725627364980,8.6461,134.3,134.26,7.448]
[1725627365368,1.2,134.3,134.27,7.4474]
[1725627365604,1.2,134.3,134.28,7.447]
[1725627365898,1.2,134.3,134.29,7.4465]
[1725627366597,1.2,134.3,134.28,26.0644]
[1725627366904,1.2,134.3,134.22,15.0515]
[1725627367207,1.2,134.3,134.27,7.4476]
[1725627368000,8.646,134.3,134.27,7.4476]
[1725627368178,8.646,134.3,134.26,26.0683]
[1725627368786,7.4467,134.29,134.26,18.6203]
[1725627370076,7.4461,134.3,134.26,27.55759614]
[1725627370279,7.4461,134.3,134.26,26.0683]
[1725627371675,7.4455,134.31,134.27,7.4474]
[1725627372590,18.6107,134.34,134.3,7.4456]
[1725627372591,7.4439,134.34,134.3,7.4456]
[1725627372769,7.4444,134.33,134.29,26.0627]
[1725627372975,7.4439,134.34,134.29,26.0627]
[1725627373304,7.4439,134.34,134.3,7.4459]
[1725627374232,7.4445,134.33,134.29,26.0627]
[1725627374508,20.47034711,134.35,134.26,18.6201]
[1725627374674,20.47034711,134.35,134.25,42.68022718]
[1725627374675,7.4469,134.29,134.25,7.4484]
[1725627374880,7.4469,134.29,134.25,9.12887177]
[1725627375102,18.6113,134.33,134.26,7.4482]
[1725627375103,7.4463,134.3,134.26,7.4482]
[1725627375312,7.4466,134.29,134.25,26.0704]
[1725627375506,7.4462,134.3,134.26,7.4478]
[1725627375713,7.4467,134.29,134.25,26.0702]
[1725627376008,1.86186827,134.28,134.23,1.68182915]
[1725627376184,18.6166,134.29,134.19,16.41]
[1725627376388,7.4486,134.26,134.22,7.4503]
[1725627376914,6.4138,134.27,134.19,18.09285412]
[1725627377075,45.0,134.26,134.19,18.09285412]
[1725627377405,7.4489,134.25,134.2,7.4511]
[1725627377579,7.4489,134.25,134.21,7.4509]
[1725627378183,45.0,134.26,134.18,20.31402501]
[1725627378379,1.8627577,134.25,134.18,20.31402501]
[1725627378716,1.8627577,134.25,134.18,18.6307]
[1725627378880,1.8627577,134.25,134.2,7.4515]
[1725627378881,7.4489,134.25,134.2,7.4515]
[1725627379084,45.0,134.26,134.2,18.6283]
[1725627379315,45.0,134.26,134.22,7.45]
[1725627379500,45.0,134.26,134.23,7.4498]
[1725627379987,6.4138,134.27,134.24,7.4492]
[1725627380188,15.72385747,134.27,134.22,18.6255]
[1725627380405,1.86257314,134.26,134.22,18.6255]
[1725627380600,1.86257314,134.26,134.22,26.0758]
[1725627380908,13.8615,134.27,134.22,26.0758]
[1725627381281,45.0,134.26,134.22,26.0758]
[1725627381480,13.8615,134.27,134.22,26.0758]
[1725627381719,13.8615,134.27,134.23,7.4497]
[1725627381887,7.4482,134.26,134.22,26.0759]
[1725627382185,7.4482,134.26,134.2,7.4515]
[1725627382186,1.86254168,134.26,134.2,7.4515]
[1725627382403,7.4489,134.25,134.2,7.4515]
[1725627382782,7.4504,134.23,134.19,18.6295]
[1725627382985,1.8629268,134.22,134.19,26.0814]
[1725627383212,7.4488,134.25,134.19,18.6295]
[1725627383506,7.4483,134.26,134.21,7.4505]
[1725627383811,13.8615,134.27,134.23,7.4498]
[1725627384015,45.0,134.26,134.22,26.0762]
[1725627384487,45.0,134.26,134.23,7.4498]
[1725627384805,6.4138,134.27,134.23,7.4497]
[1725627385018,46.86246637,134.26,134.19,20.3131188]
[1725627385215,7.4519,134.2,134.18,2.93040111]
[1725627385378,18.6225,134.25,134.16,18.6333]
[1725627385379,7.4505,134.22,134.16,18.6333]
[1725627385583,7.4505,134.22,134.12,1.6837966]
[1725627385584,6.0358,134.23,134.18,18.6312]
[1725627385885,6.0358,134.23,134.11,96.56572718]
[1725627385886,6.0358,134.23,134.22,7.4504]
[1725627386094,14.0755,134.28,134.24,7.449]
[1725627386095,6.0358,134.27,134.24,7.449]
[1725627386414,1.86244813,134.26,134.22,26.0754]
[1725627386619,7.4488,134.25,134.22,18.6254]
[1725627386788,7.4484,134.26,134.22,18.6254]
[1725627387507,6.0358,134.27,134.24,7.4488]
[1725627387824,6.0358,134.27,134.24,18.6226]
[1725627388110,6.0358,134.27,134.25,7.4486]
[1725627388411,13.4839,134.27,134.21,18.6269]
[1725627388715,6.0358,134.27,134.21,18.6269]
[1725627388920,13.4835,134.27,134.23,7.4497]
[1725627389502,7.4469,134.29,134.23,18.6242]
[1725627389688,18.61505512,134.31,134.2,37.2552]
[1725627389887,7.4467,134.29,134.25,18.6216]
[1725627390927,7.4467,134.29,134.2,37.2552]
[1725627390928,12.47795512,134.31,134.26,1.48969845]
[1725627391112,13.77170147,134.34,134.26,1.48969845]
[1725627391113,7.35100147,134.34,134.33,7.4443]
[1725627391491,7.35100147,134.34,134.27,7.4475]
[1725627391731,7.4443,134.33,134.28,18.617]
[1725627392031,7.35100147,134.34,134.29,7.4465]
[1725627392718,14.79490147,134.34,134.29,7.4465]
[1725627393036,14.79490147,134.34,134.3,7.4459]
[1725627393737,7.35100147,134.34,134.26,16.2568]
[1725627393917,7.35100147,134.34,134.27,7.4472]
[1725627393918,7.4453,134.32,134.27,7.4472]
[1725627394122,7.35100147,134.34,134.26,16.2568]
[1725627394647,7.35100147,134.34,134.26,58.93702718]
[1725627395009,19.1101635,134.38,134.26,58.93702718]
[1725627395828,26.5517635,134.38,134.33,7.4442]
[1725627396145,19.1101635,134.38,134.33,7.4442]
[1725627396316,7.4425,134.37,134.32,7.4448]
[1725627396513,7.4425,134.37,134.31,18.6128]
[1725627396514,1.86075031,134.37,134.31,18.6128]
[1725627396720,7.4438,134.34,134.29,7.4464]
[1725627397250,7.4438,134.34,134.3,7.446]
[1725627397412,7.4432,134.35,134.26,16.2568]
[1725627397609,6.4207,134.38,134.31,18.6136]
[1725627397849,6.4207,134.38,134.33,18.61]
[1725627398137,13.05213587,134.39,134.28,42.68022718]
[1725627398138,13.05213587,134.39,134.36,7.4421]
[1725627398346,7.35100147,134.41,134.37,7.442]
[1725627398569,7.35100147,134.41,134.35,18.6073]
[1725627398839,9.21168389,134.41,134.35,18.6073]
[1725627399052,7.35100147,134.41,134.35,18.6073]
[1725627399250,7.1702346,134.42,134.35,18.6073]
[1725627399745,7.1702346,134.42,134.33,15.2774]
[1725627399746,9.30030966,134.41,134.33,15.2774]
[1725627399956,7.4407,134.4,134.33,15.2774]
[1725627400239,14.52123607,134.42,134.3,18.614]
[1725627400442,1.86055334,134.39,134.3,18.614]
[1725627400833,1.86055334,134.39,134.29,16.4022]
[1725627401035,1.86055334,134.39,134.26,32.3833]
[1725627401036,7.4448,134.33,134.26,32.3833]
[1725627401221,13.56068258,134.38,134.22,6.2355]
[1725627401222,1.86138737,134.32,134.22,6.2355]
[1725627401421,7.4464,134.3,134.22,6.2355]
[1725627401634,1.86183074,134.31,134.22,6.2355]
[1725627401837,45.0,134.32,134.22,6.2355]
[1725627402139,45.0,134.33,134.22,6.2355]
[1725627402347,60.65937371,134.33,134.22,6.2355]
[1725627402533,1.86181637,134.32,134.22,6.2355]
[1725627402727,1.86181637,134.32,134.22,7.4503]
[1725627402728,7.4467,134.29,134.22,7.4503]
[1725627402929,1.86212467,134.28,134.21,18.6263]
[1725627403132,13.36257715,134.31,134.2,15.9516]
[1725627403339,6.593,134.3,134.17,18.6327]
[1725627403537,80.96730238,134.29,134.16,16.5739]
[1725627403742,7.4505,134.22,134.16,16.5739]
[1725627404118,13.98076392,134.28,134.11,22.7349]
[1725627404119,1.2,134.16,134.11,22.7349]
[1725627404629,1.2,134.16,134.09,18.644]
[1725627404828,8.6539,134.16,134.09,18.644]
[1725627405139,8.6539,134.16,134.09,26.1015]
[1725627405342,1.2,134.16,134.1,7.457]
[1725627405545,10.51735302,134.16,134.09,18.644]
[1725627406041,10.51735302,134.16,134.09,26.1015]
[1725627406853,7.4544,134.15,134.09,26.1015]
[1725627407020,8.6538,134.16,134.09,18.644]
[1725627407429,8.6538,134.16,134.09,26.1016]
[1725627407751,8.6538,134.16,134.06,15.2788]
[1725627407752,7.4561,134.12,134.06,15.2788]
[1725627408043,7.4561,134.12,134.05,26.1083]
[1725627408044,7.4566,134.11,134.05,18.6489]
[1725627408243,1.86437757,134.1,134.05,18.6489]
[1725627408450,7.4577,134.09,134.02,7.4611]
[1725627408664,7.4577,134.09,134.03,7.4609]
[1725627408822,7.4571,134.1,134.04,18.6506]
[1725627409442,19.8348,134.16,134.06,7.4592]
[1725627409646,45.0,134.15,134.06,7.4592]
[1725627409829,18.6506,134.19,134.07,18.6465]
[1725627410030,1.86387043,134.19,134.07,18.6465]
[1725627410257,7.4572,134.1,134.01,15.6495]
[1725627410424,18.6377,134.14,134.02,18.6528]
[1725627410627,1.86430322,134.13,134.02,18.6528]
[1725627410940,7.4582,134.08,134.03,7.4604]
[1725627411129,7.4578,134.09,134.02,26.1139]
[1725627411327,7.4576,134.1,134.02,18.6528]
[1725627411652,7.4577,134.09,134.04,7.4604]
[1725627411871,7.4572,134.1,134.04,26.1097]
[1725627412150,13.05419341,134.13,134.04,26.1097]
[1725627412353,1.86447086,134.12,134.04,26.1097]
[1725627412558,7.4594,134.06,134.01,7.462]
[1725627412735,65.50567086,134.12,133.97,18.6607]
[1725627412736,1.86504591,134.05,133.97,18.6607]
[1725627413055,82.2813,134.12,133.98,7.4637]
[1725627413056,7.4615,134.03,133.98,7.4637]
[1725627413552,7.4616,134.02,133.97,18.6607]
[1725627413859,18.6502,134.05,133.93,18.6661]
[1725627414027,46.86567193,134.04,133.95,7.4653]
[1725627414440,7.4629,134.0,133.95,7.4654]
[1725627414839,7.4622,134.01,133.95,7.4654]
[1725627415039,51.5295,134.04,133.96,1.49250109]
[1725627415356,6.5295,134.04,133.97,7.4638]
[1725627416133,7.461,134.03,133.97,7.4638]
[1725627416329,7.4617,134.02,133.97,7.4638]
[1725627416724,7.4622,134.01,133.96,7.4648]
[1725627416970,6.5295,134.04,133.96,1.4925335]
[1725627417126,6.5295,134.04,133.91,16.2574]
[1725627417127,7.4633,133.99,133.94,8.3433346]
[1725627417330,7.4628,134.0,133.95,7.4649]
[1725627418146,6.5295,134.04,133.94,19.5422346]
[1725627418147,1.86572826,133.99,133.94,0.8774346]
[1725627418459,7.4654,133.95,133.94,0.8774346]
[1725627419031,7.465,133.96,133.94,0.8774346]
[1725627419232,7.4654,133.95,133.94,0.8774346]
[1725627420452,7.4649,133.96,133.94,0.8774346]
[1725627420759,13.57823706,134.01,133.94,0.8774346]
[1725627421137,7.4638,133.98,133.94,0.8774346]
[1725627421339,18.6492,134.06,133.95,34.2406]
[1725627421630,18.6492,134.06,134.01,7.462]
[1725627421631,7.4593,134.06,134.01,7.462]
[1725627421837,13.18871254,134.08,133.96,44.43905533]
[1725627422042,7.4597,134.06,134.01,7.4621]
[1725627422261,18.6513,134.04,133.96,18.6622]
[1725627422630,7.4617,134.02,133.97,7.4642]
[1725627422857,13.18871254,134.08,133.98,7.4637]
[1725627422858,7.4611,134.03,133.98,7.4637]
[1725627423058,31.83531254,134.08,133.98,18.6583]
[1725627423359,31.83531254,134.08,133.95,15.5778]
[1725627423360,13.18871254,134.08,133.96,44.43905533]
[1725627423739,7.4621,134.02,133.97,7.4642]
[1725627423946,18.648,134.07,133.95,15.5778]
[1725627424295,7.4621,134.01,133.97,18.6602]
[1725627424556,7.4649,133.96,133.94,0.8774346]
[1725627424762,7.4644,133.97,133.94,0.8774346]
[1725627425265,7.4638,133.98,133.94,0.8774346]
[1725627425563,18.655,134.02,133.94,8.3432346]
[1725627425739,7.4638,133.98,133.94,0.8774346]
[1725627426062,18.6574,134.0,133.94,0.8774346]
[1725627426261,7.4654,133.95,133.94,0.8774346]
[1725627426839,9.33213289,133.95,133.94,0.8774346]
[1725627427045,7.4654,133.95,133.94,0.8774346]
[1725627428844,52.4654,133.95,133.94,0.8774346]
[1725627430444,7.4695,133.88,133.85,15.4959]
[1725627430664,45.0,133.94,133.85,15.4959]
[1725627430861,7.4672,133.92,133.88,7.4693]
[1725627431063,69.09654964,133.98,133.89,7.4684]
[1725627431381,7.4661,133.94,133.9,18.6706]
[1725627431564,7.4666,133.93,133.89,7.4686]
[1725627431882,31.77524964,133.98,133.85,15.4959]
[1725627431883,7.4684,133.9,133.86,7.4703]
[1725627432259,7.4689,133.89,133.85,15.4959]
[1725627432472,1.86713324,133.94,133.81,19.5599346]
[1725627432658,7.4718,133.84,133.81,0.8774346]
[1725627432856,7.4706,133.86,133.81,0.8774346]
[1725627433080,18.6701,133.91,133.83,7.472]
[1725627433299,37.3298,133.95,133.81,0.8774346]
[1725627433300,7.4714,133.85,133.81,0.8774346]
[1725627433583,7.4705,133.86,133.81,0.8774346]
[1725627434084,18.6727,133.89,133.81,8.3502346]
[1725627434085,7.4711,133.85,133.81,8.3502346]
[1725627434468,7.4709,133.86,133.81,0.8774346]
[1725627434855,56.0065,133.92,133.81,19.5594346]
[1725627435182,13.34270894,133.94,133.83,18.6793]
[1725627435681,13.34270894,133.94,133.88,7.4693]
[1725627435888,18.6642,133.95,133.89,1.4932998]
[1725627436058,18.6642,133.95,133.88,7.4693]
[1725627436263,18.6598,133.98,133.88,18.6731]
[1725627436470,18.6598,133.98,133.89,1.49324838]
[1725627436678,18.6598,133.98,133.89,15.1294]
[1725627436985,13.72380159,134.02,133.9,18.6695]
[1725627437162,1.86645021,134.01,133.89,15.1294]
[1725627437363,7.4672,133.92,133.89,15.1294]
[1725627437886,18.6604,133.98,133.89,15.1294]
[1725627438063,7.4654,133.96,133.91,7.4672]
[1725627438259,12.96700359,134.0,133.92,1.49311681]
[1725627438586,12.96700359,134.0,133.89,15.1294]
[1725627438587,7.4673,133.92,133.89,15.1294]
[1725627438882,37.3172,133.99,133.89,15.1294]
[1725627438883,18.662,133.97,133.89,15.1294]
[1725627439090,18.6657,133.94,133.83,56.0402]
[1725627439281,1.86690046,133.96,133.84,15.1656]
[1725627439581,37.3172,133.99,133.84,15.1656]
[1725627439582,37.3273,133.95,133.84,15.1656]
[1725627439803,7.4705,133.86,133.84,15.1656]
[1725627440780,7.471,133.85,133.84,15.1656]
[1725627441279,18.6714,133.9,133.84,15.1656]
[1725627441280,7.4705,133.86,133.84,15.1656]
[1725627441488,7.471,133.85,133.84,15.1656]
[1725627441871,51.4157,133.94,133.84,15.1656]
[1725627442084,51.4157,133.94,133.81,0.8774346]
[1725627442085,18.667,133.93,133.83,7.472]
[1725627442260,7.4694,133.88,133.83,7.472]
[1725627442455,18.667,133.93,133.84,8.96524705]
[1725627442456,7.4689,133.89,133.84,8.96524705]
[1725627442662,18.667,133.93,133.82,18.681]
[1725627443272,18.667,133.93,133.81,0.8774346]
[1725627443273,7.4707,133.86,133.81,0.8774346]
[1725627443671,7.47,133.87,133.81,0.8774346]
[1725627443969,7.47,133.87,133.81,8.3506346]
[1725627444182,1.86759159,133.9,133.81,8.3506346]
[1725627444183,7.4707,133.86,133.81,0.8774346]
[1725627444692,18.6705,133.91,133.81,0.8774346]
[1725627444861,7.4704,133.86,133.81,0.8774346]
[1725627445063,7.4704,133.86,133.81,8.3505346]
[1725627445574,7.4699,133.88,133.81,19.5593346]
[1725627445775,7.4699,133.88,133.82,1.49427925]
[1725627445973,7.4699,133.88,133.81,19.5593346]
[1725627445974,7.4699,133.88,133.83,1.49400967]
[1725627446763,7.4699,133.88,133.81,19.5593346]
[1725627446964,7.4682,133.9,133.85,7.4709]
[1725627447192,13.17629386,133.93,133.84,18.6783]
[1725627447763,7.4677,133.91,133.86,7.4704]
[1725627447968,13.17629386,133.93,133.84,18.6783]
[1725627448186,7.4666,133.93,133.87,26.144]
[1725627448775,7.4674,133.92,133.87,26.144]
[1725627449695,7.4677,133.91,133.87,18.6746]
[1725627450389,7.4672,133.92,133.88,7.4693]
[1725627450596,6.3153,133.98,133.85,6.4629]
[1725627450768,6.3153,133.98,133.86,15.369]
[1725627451290,7.4661,133.94,133.89,7.4683]
[1725627451595,24.9756,133.98,133.9,7.4677]
[1725627451969,24.9756,133.98,133.88,18.6731]
[1725627451970,7.4654,133.95,133.91,7.4676]
[1725627452371,7.4655,133.95,133.9,18.6698]
[1725627452589,1.86644952,133.97,133.87,18.6743]
[1725627452897,7.4671,133.92,133.87,26.1441]
[1725627453388,7.4671,133.92,133.88,7.4693]
[1725627453788,7.4661,133.94,133.89,18.6714]
[1725627453969,7.4655,133.95,133.9,7.4678]
[1725627454169,6.3153,133.98,133.89,26.1401]
[1725627454396,1.86669062,133.97,133.89,26.1401]
[1725627454580,7.466,133.94,133.89,26.1401]
[1725627454993,7.466,133.94,133.9,7.4682]
[1725627455305,7.4662,133.94,133.89,26.14]
[1725627456101,7.4662,133.94,133.9,7.4681]
[1725627456287,7.4655,133.95,133.9,7.4681]
[1725627456698,7.4655,133.95,133.89,18.6714]
[1725627456699,7.466,133.94,133.89,26.1401]
[1725627457001,7.4655,133.95,133.9,7.4678]
[1725627457308,7.4644,133.97,133.91,18.6687]
[1725627457600,7.4644,133.97,133.86,52.7214]
[1725627457601,7.4622,134.01,133.96,7.4645]
[1725627457771,1.86560875,134.03,133.95,26.1278]
[1725627458277,7.4633,133.99,133.95,26.1278]
[1725627458596,7.4638,133.98,133.94,7.466]
[1725627459699,7.465,133.96,133.92,18.6671]
[1725627459998,7.4661,133.94,133.9,23.3335]
[1725627460196,14.82959919,134.02,133.9,13.81994]
[1725627460399,12.96304718,134.02,133.93,18.6659]
[1725627460584,7.4649,133.96,133.93,18.6659]
[1725627460900,7.4649,133.96,133.9,13.81994]
[1725627460901,7.4649,133.96,133.91,7.4675]
[1725627461097,7.4649,133.96,133.92,7.467]
[1725627461301,7.465,133.96,133.91,7.4675]
[1725627461481,7.465,133.96,133.92,7.467]
[1725627461687,7.4644,133.97,133.93,7.4665]
[1725627462395,7.4649,133.96,133.92,26.1344]
[1725627462595,18.657,134.0,133.93,7.4662]
[1725627462792,7.465,133.96,133.92,26.1344]
[1725627462979,7.4664,133.94,133.9,21.28794]
[1725627463180,7.4655,133.95,133.91,7.4675]
[1725627463379,7.4655,133.95,133.9,13.81994]
[1725627463380,7.4641,133.98,133.94,7.466]
[1725627463600,7.4641,133.98,133.9,13.81994]
[1725627463800,7.4644,133.97,133.93,26.1321]
[1725627464508,63.6562,134.01,133.93,26.1321]
[1725627464684,7.4661,133.94,133.9,39.95744]
[1725627464883,18.6583,133.99,133.9,32.48974]
[1725627465106,7.4658,133.95,133.91,7.4673]
[1725627465411,7.4651,133.96,133.92,7.4669]
[1725627465695,18.6583,133.99,133.91,7.4675]
[1725627465696,7.4655,133.95,133.91,7.4675]
[1725627465902,18.6583,133.99,133.9,32.48974]
[1725627466094,45.0,133.98,133.9,32.48974]
[1725627466296,7.4648,133.97,133.93,7.4664]
[1725627466501,12.96304718,134.02,133.9,13.81994]
[1725627466502,7.4633,133.99,133.95,7.4653]
[1725627466703,7.4633,133.99,133.94,18.6647]
[1725627466704,7.4638,133.98,133.94,26.1305]
[1725627466879,7.4644,133.97,133.94,18.6647]
[1725627467207,1.2,133.94,133.91,18.6683]